fUST/lending_fUST_20260510
["ID","MTS","AMOUNT","RATE_DAILY","PERIOD"]
[421939759,1778356248000,-500.0,0.00010958,2]
[421939761,1778356248000,-500.0,0.00010958,2]
[421939762,1778356248000,-500.0,0.00010958,2]
[421939764,1778356248000,-500.0,0.00010958,2]
[421939846,1778356249000,-500.0,0.00010958,2]
[421939843,1778356249000,-500.0,0.00010958,2]
[421939844,1778356249000,-500.0,0.00010958,2]
[421939845,1778356249000,-500.0,0.00010958,2]
[421939842,1778356249000,-514.886,0.00010958,2]
[421939838,1778356249000,-500.0,0.00010958,2]
[421939841,1778356249000,-500.0,0.00010958,2]
[421939837,1778356249000,-500.0,0.00010958,2]
[421939835,1778356249000,-500.0,0.00010958,2]
[421939833,1778356249000,-500.0,0.00010958,2]
[421939834,1778356249000,-500.0,0.00010958,2]
[421939840,1778356249000,-500.0,0.00010958,2]
[421939850,1778356249000,-500.0,0.00010958,2]
[421939855,1778356249000,-500.0,0.00010958,2]
[421939847,1778356249000,-500.0,0.00010958,2]
[421939848,1778356249000,-500.0,0.00010958,2]
[421939851,1778356249000,-500.0,0.00010958,2]
[421939852,1778356249000,-1315.45,0.00010958,2]
[421939853,1778356249000,-500.0,0.00010958,2]
[421939854,1778356249000,-729.97,0.00010958,2]
[421939857,1778356249000,-500.0,0.00010958,2]
[421939859,1778356249000,-500.0,0.00010958,2]
[421939860,1778356249000,-500.0,0.00010958,2]
[421939858,1778356249000,-500.0,0.00010958,2]
[421939861,1778356249000,-500.0,0.00010958,2]
[421939863,1778356249000,-198.72585772,0.00010958,2]
[421939830,1778356249000,-500.0,0.00010958,2]
[421939862,1778356249000,-500.0,0.00010958,2]
[421939849,1778356249000,-500.0,0.00010958,2]
[421939839,1778356249000,-612.43,0.00010958,2]
[421939817,1778356249000,-500.0,0.00010958,2]
[421939829,1778356249000,-537.13767199,0.00010958,2]
[421939864,1778356249000,-500.0,0.00010958,2]
[421939803,1778356249000,-500.0,0.00010958,2]
[421939805,1778356249000,-500.0,0.00010958,2]
[421939807,1778356249000,-500.0,0.00010958,2]
[421939806,1778356249000,-500.0,0.00010958,2]
[421939812,1778356249000,-1496.38,0.00010958,2]
[421939804,1778356249000,-500.0,0.00010958,2]
[421939809,1778356249000,-500.0,0.00010958,2]
[421939808,1778356249000,-500.0,0.00010958,2]
[421939810,1778356249000,-500.0,0.00010958,2]
[421939811,1778356249000,-500.0,0.00010958,2]
[421939813,1778356249000,-647.02128219,0.00010958,2]
[421939816,1778356249000,-500.0,0.00010958,2]
[421939836,1778356249000,-605.52,0.00010958,2]
[421939814,1778356249000,-500.0,0.00010958,2]
[421939819,1778356249000,-500.0,0.00010958,2]
[421939820,1778356249000,-500.0,0.00010958,2]
[421939818,1778356249000,-500.0,0.00010958,2]
[421939826,1778356249000,-500.0,0.00010958,2]
[421939825,1778356249000,-500.0,0.00010958,2]
[421939824,1778356249000,-500.0,0.00010958,2]
[421939822,1778356249000,-500.0,0.00010958,2]
[421939821,1778356249000,-500.0,0.00010958,2]
[421939823,1778356249000,-500.0,0.00010958,2]
[421939828,1778356249000,-500.0,0.00010958,2]
[421939827,1778356249000,-500.0,0.00010958,2]
[421939831,1778356249000,-418.79145994,0.00010958,2]
[421939832,1778356249000,-500.0,0.00010958,2]
[421939815,1778356249000,-500.0,0.00010958,2]
[421939866,1778356249000,-500.0,0.00010958,2]
[421939856,1778356249000,-500.0,0.00010958,2]
[421939867,1778356249000,-500.0,0.00010958,2]
[421939897,1778356249000,-500.0,0.00010958,2]
[421939901,1778356249000,-2085.3,0.00010958,2]
[421939898,1778356249000,-500.0,0.00010958,2]
[421939902,1778356249000,-500.0,0.00010958,2]
[421939913,1778356249000,-500.0,0.00010958,2]
[421939916,1778356249000,-500.0,0.00010958,2]
[421939909,1778356249000,-500.0,0.00010958,2]
[421939914,1778356249000,-500.0,0.00010958,2]
[421939905,1778356249000,-500.0,0.00010958,2]
[421939912,1778356249000,-500.0,0.00010958,2]
[421939908,1778356249000,-500.0,0.00010958,2]
[421939904,1778356249000,-500.0,0.00010958,2]
[421939915,1778356249000,-500.0,0.00010958,2]
[421939893,1778356249000,-1207.48,0.00010958,2]
[421939917,1778356249000,-500.0,0.00010958,2]
[421939906,1778356249000,-151.32330022,0.00010958,2]
[421939911,1778356249000,-1669.66,0.00010958,2]
[421939918,1778356249000,-500.0,0.00010958,2]
[421939921,1778356249000,-500.0,0.00010958,2]
[421939919,1778356249000,-500.0,0.00010958,2]
[421939920,1778356249000,-500.0,0.00010958,2]
[421939925,1778356249000,-500.0,0.00010958,2]
[421939926,1778356249000,-500.0,0.00010958,2]
[421939923,1778356249000,-500.0,0.00010958,2]
[421939924,1778356249000,-500.0,0.00010958,2]
[421939927,1778356249000,-490.0,0.00010958,2]
[421939922,1778356249000,-500.0,0.00010958,2]
[421939865,1778356249000,-500.0,0.00010958,2]
[421939910,1778356249000,-1156.25,0.00010958,2]
[421939900,1778356249000,-500.0,0.00010958,2]
[421939907,1778356249000,-500.0,0.00010958,2]
[421939896,1778356249000,-500.0,0.00010958,2]
[421939899,1778356249000,-500.0,0.00010958,2]
[421939876,1778356249000,-500.0,0.00010958,2]
[421939873,1778356249000,-500.0,0.00010958,2]
[421939871,1778356249000,-1327.04,0.00010958,2]
[421939874,1778356249000,-500.0,0.00010958,2]
[421939872,1778356249000,-500.0,0.00010958,2]
[421939870,1778356249000,-500.0,0.00010958,2]
[421939869,1778356249000,-500.0,0.00010958,2]
[421939875,1778356249000,-500.0,0.00010958,2]
[421939878,1778356249000,-500.0,0.00010958,2]
[421939877,1778356249000,-500.0,0.00010958,2]
[421939879,1778356249000,-500.0,0.00010958,2]
[421939882,1778356249000,-500.0,0.00010958,2]
[421939881,1778356249000,-500.0,0.00010958,2]
[421939928,1778356249000,-500.0,0.00010958,2]
[421939884,1778356249000,-500.0,0.00010958,2]
[421939895,1778356249000,-500.0,0.00010958,2]
[421939883,1778356249000,-500.0,0.00010958,2]
[421939894,1778356249000,-500.0,0.00010958,2]
[421939903,1778356249000,-500.0,0.00010958,2]
[421939891,1778356249000,-500.0,0.00010958,2]
[421939892,1778356249000,-500.0,0.00010958,2]
[421939889,1778356249000,-500.0,0.00010958,2]
[421939868,1778356249000,-500.0,0.00010958,2]
[421939885,1778356249000,-500.0,0.00010958,2]
[421939880,1778356249000,-500.0,0.00010958,2]
[421939886,1778356249000,-500.0,0.00010958,2]
[421939887,1778356249000,-500.0,0.00010958,2]
[421939890,1778356249000,-500.0,0.00010958,2]
[421939888,1778356249000,-500.0,0.00010958,2]
[421939951,1778356250000,-936.73,0.00010958,2]
[421939950,1778356250000,-692.93,0.00010958,2]
[421939953,1778356250000,-500.0,0.00010958,2]
[421939954,1778356250000,-500.0,0.00010958,2]
[421939956,1778356250000,-500.0,0.00010958,2]
[421939959,1778356250000,-952.23,0.00010958,2]
[421939958,1778356250000,-500.0,0.00010958,2]
[421939964,1778356250000,-500.0,0.00010958,2]
[421939962,1778356250000,-255.87,0.00010958,2]
[421939955,1778356250000,-522.94,0.00010958,2]
[421939952,1778356250000,-500.0,0.00010958,2]
[421939960,1778356250000,-596.06,0.00010958,2]
[421939961,1778356250000,-500.0,0.00010958,2]
[421939963,1778356250000,-1031.45,0.00010958,2]
[421939967,1778356250000,-500.0,0.00010958,2]
[421939966,1778356250000,-500.0,0.00010958,2]
[421939957,1778356250000,-846.87,0.00010958,2]
[421939965,1778356250000,-500.0,0.00010958,2]
[421939933,1778356250000,-500.0,0.00010958,2]
[421939945,1778356250000,-500.0,0.00010958,2]
[421939970,1778356250000,-500.0,0.00010958,2]
[421939929,1778356250000,-500.0,0.00010958,2]
[421939932,1778356250000,-500.0,0.00010958,2]
[421939934,1778356250000,-540.17840195,0.00010958,2]
[421939930,1778356250000,-1749.75,0.00010958,2]
[421939931,1778356250000,-930.75,0.00010958,2]
[421939935,1778356250000,-2852.57,0.00010958,2]
[421939938,1778356250000,-500.0,0.00010958,2]
[421939948,1778356250000,-500.0,0.00010958,2]
[421939936,1778356250000,-1297.5,0.00010958,2]
[421939937,1778356250000,-500.0,0.00010958,2]
[421939940,1778356250000,-171.25887002,0.00010958,2]
[421939942,1778356250000,-500.0,0.00010958,2]
[421939941,1778356250000,-3074.08,0.00010958,2]
[421939944,1778356250000,-500.0,0.00010958,2]
[421939943,1778356250000,-500.0,0.00010958,2]
[421939946,1778356250000,-500.0,0.00010958,2]
[421939947,1778356250000,-500.0,0.00010958,2]
[421939939,1778356250000,-500.0,0.00010958,2]
[421939971,1778356250000,-500.0,0.00010958,2]
[421939949,1778356250000,-500.0,0.00010958,2]
[421939974,1778356250000,-500.0,0.00010958,2]
[421939998,1778356250000,-500.0,0.00010958,2]
[421939993,1778356250000,-500.0,0.00010958,2]
[421940000,1778356250000,-16602.78,0.00010958,2]
[421940002,1778356250000,-500.0,0.00010958,2]
[421939996,1778356250000,-1163.95,0.00010958,2]
[421939992,1778356250000,-500.0,0.00010958,2]
[421939995,1778356250000,-500.0,0.00010958,2]
[421939999,1778356250000,-500.0,0.00010958,2]
[421940001,1778356250000,-895.82,0.00010958,2]
[421940003,1778356250000,-500.0,0.00010958,2]
[421940005,1778356250000,-500.0,0.00010958,2]
[421940007,1778356250000,-396.69,0.00010958,2]
[421940008,1778356250000,-609.27,0.00010958,2]
[421940009,1778356250000,-3177.45,0.00010958,2]
[421940006,1778356250000,-1711.5,0.00010958,2]
[421940010,1778356250000,-380.41351038,0.00010958,2]
[421939975,1778356250000,-1447.47,0.00010958,2]
[421939994,1778356250000,-2396.64,0.00010958,2]
[421939997,1778356250000,-196.07918185,0.00010958,2]
[421940004,1778356250000,-500.0,0.00010958,2]
[421939991,1778356250000,-500.0,0.00010958,2]
[421939969,1778356250000,-968.0,0.00010958,2]
[421939973,1778356250000,-500.0,0.00010958,2]
[421939972,1778356250000,-500.0,0.00010958,2]
[421939976,1778356250000,-447.09317342,0.00010958,2]
[421939977,1778356250000,-1285.06,0.00010958,2]
[421939989,1778356250000,-587.47,0.00010958,2]
[421939968,1778356250000,-500.0,0.00010958,2]
[421939978,1778356250000,-3132.82,0.00010958,2]
[421939982,1778356250000,-500.0,0.00010958,2]
[421939981,1778356250000,-500.0,0.00010958,2]
[421939979,1778356250000,-500.0,0.00010958,2]
[421939983,1778356250000,-500.0,0.00010958,2]
[421939985,1778356250000,-1691.34,0.00010958,2]
[421939988,1778356250000,-500.0,0.00010958,2]
[421939984,1778356250000,-500.0,0.00010958,2]
[421939987,1778356250000,-500.0,0.00010958,2]
[421939986,1778356250000,-500.0,0.00010958,2]
[421939980,1778356250000,-2102.74,0.00010958,2]
[421939990,1778356250000,-500.0,0.00010958,2]
[421940015,1778356419000,6747.33895718,0.00019178,120]
[421940022,1778357015000,1059.92035304,0.00016144,120]
[421940023,1778357016000,1059.92035304,0.00016187,120]
[421940024,1778357017000,1059.92035304,0.00016231,120]
[421940025,1778357207000,-279.6108174,7.524e-05,2]
[421940047,1778357432000,-2976.52056044,7.375e-05,2]
[421940046,1778357432000,-279.61057404,7.301e-05,2]
[421940048,1778357432000,-564.77,7.375e-05,2]
[421940085,1778357438000,-300.0,7.751e-05,2]
[421940083,1778357438000,-300.0,7.751e-05,2]
[421940082,1778357438000,-300.0,7.751e-05,2]
[421940081,1778357438000,-300.0,7.751e-05,2]
[421940080,1778357438000,-300.0,7.751e-05,2]
[421940079,1778357438000,-300.0,7.751e-05,2]
[421940078,1778357438000,-300.0,7.751e-05,2]
[421940077,1778357438000,-300.0,7.751e-05,2]
[421940074,1778357438000,-300.0,7.751e-05,2]
[421940075,1778357438000,-300.0,7.751e-05,2]
[421940073,1778357438000,-300.0,7.751e-05,2]
[421940070,1778357438000,-6810.0306589,7.6e-05,2]
[421940071,1778357438000,-300.0,7.751e-05,2]
[421940072,1778357438000,-300.0,7.751e-05,2]
[421940068,1778357438000,-387.23810588,7.487e-05,2]
[421940069,1778357438000,-300.0,7.599e-05,2]
[421940067,1778357438000,-1458.70943956,7.375e-05,2]
[421940076,1778357438000,-300.0,7.751e-05,2]
[421940084,1778357438000,-300.0,7.751e-05,2]
[421940089,1778357438000,-1767.23797793,0.00010429,2]
[421940091,1778357438000,-2201.0,0.00010555,2]
[421940107,1778357438000,-837.0534585,0.0001094,2]
[421940105,1778357438000,-24197.7433527,0.00010858,2]
[421940103,1778357438000,-14586.32744373,0.00010858,2]
[421940104,1778357438000,-968.13929442,0.00010858,2]
[421940102,1778357438000,-447.9193828,0.00010857,2]
[421940101,1778357438000,-2000.00000001,0.00010848,2]
[421940100,1778357438000,-4327.68608972,0.00010829,2]
[421940099,1778357438000,-161.5993154,0.00010809,2]
[421940097,1778357438000,-160.0,0.00010808,2]
[421940106,1778357438000,-4610.93405485,0.00010929,2]
[421940098,1778357438000,-160.0,0.00010808,2]
[421940096,1778357438000,-160.0,0.00010806,2]
[421940086,1778357438000,-3125.63975254,9.425e-05,2]
[421940090,1778357438000,-3528.75809751,0.00010529,2]
[421940087,1778357438000,-456.94096493,9.487e-05,2]
[421940088,1778357438000,-6682.84235341,0.0001,2]
[421940092,1778357438000,-647.0,0.00010555,2]
[421940094,1778357438000,-4044.4381246,0.00010729,2]
[421940095,1778357438000,-600.0,0.00010765,2]
[421940093,1778357438000,-3761.19015958,0.00010629,2]
[421940110,1778357440000,-279.6108174,0.0001094,2]
[421940345,1778357446000,-152.0,8.422e-05,7]
[421940347,1778357446000,-23352.90506383,0.0001094,2]
[421940346,1778357446000,-9468.32578733,0.0001094,2]
[421940344,1778357446000,-152.0,8.422e-05,7]
[421940360,1778358435000,1596.74,0.00019178,120]
[421940379,1778358631000,-152.0,8.422e-05,7]
[421940386,1778358631000,-259.43,8.815e-05,2]
[421940384,1778358631000,-67.57,8.727e-05,2]
[421940381,1778358631000,-4932.43,8.727e-05,2]
[421940469,1778358638000,-836.6429493,0.00010316,2]
[421940470,1778358638000,-161.5993154,0.0001057,2]
[421940468,1778358638000,-119.70420585,8.815e-05,2]
[421940471,1778358638000,-160.0,0.00010572,2]
[421940474,1778358638000,-300.0,0.00010706,2]
[421940475,1778358638000,-3484.12104517,0.00010747,2]
[421940473,1778358638000,-160.0,0.00010572,2]
[421940476,1778358638000,-898.17507457,0.00010747,2]
[421940477,1778358638000,-17454.21783027,0.00010747,2]
[421940479,1778358638000,-28444.62729276,0.00010747,2]
[421940478,1778358638000,-3064.4651141,0.00010747,2]
[421940472,1778358638000,-160.0,0.00010572,2]
[421940520,1778358640000,-1071.84988445,0.00010747,2]
[421940514,1778358640000,-414.12432266,0.00010747,2]
[421940512,1778358640000,-6630.10081707,0.00010747,2]
[421940894,1778358643000,-703.13135964,0.00010752,2]
[421940896,1778358643000,-703.13135964,0.00010752,2]
[421940884,1778358643000,-648.88537602,0.00010752,2]
[421940890,1778358643000,-703.13135964,0.00010752,2]
[421940880,1778358643000,-358.33550624,0.0001075,2]
[421940888,1778358643000,-703.13135964,0.00010752,2]
[421940893,1778358643000,-703.13135964,0.00010752,2]
[421940882,1778358643000,-703.13135964,0.00010752,2]
[421940877,1778358643000,-3451.31861895,0.00010747,2]
[421940899,1778358643000,-703.13135964,0.00010752,2]
[421940886,1778358643000,-703.13135964,0.00010752,2]
[421940901,1778358643000,-703.13135964,0.00010752,2]
[421940905,1778358643000,-500.0,0.00010752,2]
[421940907,1778358643000,-196.15431665,0.00010752,2]
[421940909,1778358643000,-703.13135964,0.00010752,2]
[421940911,1778358643000,-703.13135964,0.00010752,2]
[421940915,1778358643000,-703.13135964,0.00010752,2]
[421940922,1778358643000,-703.13135964,0.00010752,2]
[421940919,1778358643000,-7.33657805,0.00010752,2]
[421940913,1778358643000,-703.13135964,0.00010752,2]
[421940917,1778358643000,-695.79478159,0.00010752,2]
[421940924,1778358643000,-9.53206231,0.00010752,2]
[421940903,1778358643000,-153.72195311,0.00010752,2]
[421941286,1778358646000,-264668.40367289,0.00010753,2]
[421941269,1778358646000,-738.28792762,0.00010752,2]
[421941282,1778358646000,-738.28792762,0.00010752,2]
[421941284,1778358646000,-738.28792762,0.00010752,2]
[421941268,1778358646000,-693.59929733,0.00010752,2]
[421941280,1778358646000,-738.28792762,0.00010752,2]
[421941270,1778358646000,-738.28792762,0.00010752,2]
[421941273,1778358646000,-738.28792762,0.00010752,2]
[421941278,1778358646000,-738.28792762,0.00010752,2]
[421941275,1778358646000,-738.28792762,0.00010752,2]
[421941277,1778358646000,-738.28792762,0.00010752,2]
[421941288,1778358646000,-1026.01566809,0.00010753,2]
[421941271,1778358646000,-738.28792762,0.00010752,2]
[421942666,1778358673000,-2842.50015314,0.00010645,2]
[421942684,1778359811000,10072.05633864,0.00019,120]
[421942692,1778359832000,-326.7940112,0.00010081,2]
[421942694,1778359832000,-300.0,0.00010261,2]
[421942693,1778359832000,-1749.40412924,0.00010162,2]
[421942695,1778359832000,-381.72745181,0.00010262,2]
[421942697,1778359832000,-1374.65314757,0.00010262,2]
[421942691,1778359832000,-5000.0,9.98e-05,2]
[421942696,1778359832000,-1076.45481776,0.00010262,2]
[421942698,1778359832000,-660.57695137,0.00010262,2]
[421942701,1778359832000,-286.668405,0.00010362,2]
[421942700,1778359832000,-2378.53097662,0.00010362,2]
[421942702,1778359832000,-84.80061838,0.00010435,2]
[421942699,1778359832000,-1352.48222995,0.00010362,2]
[421942724,1778359838000,-516.80154934,0.0001045,2]
[421942715,1778359838000,-516.80154934,0.0001045,2]
[421942719,1778359838000,-516.80154934,0.0001045,2]
[421942716,1778359838000,-516.80154934,0.0001045,2]
[421942720,1778359838000,-516.80154934,0.0001045,2]
[421942718,1778359838000,-516.80154934,0.0001045,2]
[421942717,1778359838000,-516.80154934,0.0001045,2]
[421942712,1778359838000,-516.80154934,0.0001045,2]
[421942713,1778359838000,-516.80154934,0.0001045,2]
[421942711,1778359838000,-516.80154934,0.0001045,2]
[421942710,1778359838000,-516.80154934,0.0001045,2]
[421942708,1778359838000,-516.80154934,0.0001045,2]
[421942706,1778359838000,-295.67950852,0.00010435,2]
[421942707,1778359838000,-5862.0,0.00010449,2]
[421942721,1778359838000,-516.80154934,0.0001045,2]
[421942714,1778359838000,-516.80154934,0.0001045,2]
[421942723,1778359838000,-516.80154934,0.0001045,2]
[421942709,1778359838000,-454.21976322,0.0001045,2]
[421942727,1778359838000,-516.80154934,0.0001045,2]
[421942741,1778359838000,-243197.41355726,0.00010451,2]
[421942742,1778359838000,-10296.86003538,0.00010451,2]
[421942739,1778359838000,-516.80154932,0.0001045,2]
[421942722,1778359838000,-516.80154934,0.0001045,2]
[421942740,1778359838000,-27307.38438693,0.00010451,2]
[421942737,1778359838000,-516.80154932,0.0001045,2]
[421942738,1778359838000,-516.80154932,0.0001045,2]
[421942735,1778359838000,-516.80154932,0.0001045,2]
[421942734,1778359838000,-516.80154932,0.0001045,2]
[421942736,1778359838000,-516.80154932,0.0001045,2]
[421942732,1778359838000,-516.80154932,0.0001045,2]
[421942730,1778359838000,-516.80154934,0.0001045,2]
[421942726,1778359838000,-516.80154934,0.0001045,2]
[421942731,1778359838000,-516.80154934,0.0001045,2]
[421942729,1778359838000,-516.80154934,0.0001045,2]
[421942728,1778359838000,-516.80154934,0.0001045,2]
[421942725,1778359838000,-516.80154934,0.0001045,2]
[421942733,1778359838000,-516.80154932,0.0001045,2]
[421942754,1778359840000,-2433.1418704,0.00010451,2]
[421942753,1778359840000,-8062.67349115,0.00010451,2]
[421942752,1778359840000,-869.73168777,0.00010451,2]
[421942797,1778359846000,-5000.0,0.00010346,2]
[421942799,1778359846000,-30438.18514919,0.00010451,2]
[421942798,1778359846000,-24057.86598955,0.00010451,2]
[421942892,1778361041000,-300.0,9.911e-05,2]
[421942898,1778361041000,-300.0,9.911e-05,2]
[421942900,1778361041000,-1200.0,9.963e-05,2]
[421942897,1778361041000,-300.0,9.911e-05,2]
[421942902,1778361041000,-500.0,9.977e-05,2]
[421942903,1778361041000,-500.0,9.977e-05,2]
[421942901,1778361041000,-420.0,9.964e-05,2]
[421942899,1778361041000,-300.0,9.911e-05,2]
[421942894,1778361041000,-300.0,9.911e-05,2]
[421942904,1778361041000,-500.0,9.977e-05,2]
[421942905,1778361041000,-500.0,9.977e-05,2]
[421942906,1778361041000,-500.0,9.977e-05,2]
[421942908,1778361041000,-500.0,9.977e-05,2]
[421942907,1778361041000,-270.18089182,9.977e-05,2]
[421942910,1778361041000,-500.0,9.977e-05,2]
[421942912,1778361041000,-500.0,9.977e-05,2]
[421942911,1778361041000,-154.55979225,9.977e-05,2]
[421942914,1778361041000,-500.0,9.977e-05,2]
[421942909,1778361041000,-151.5,9.977e-05,2]
[421942896,1778361041000,-300.0,9.911e-05,2]
[421942879,1778361041000,-300.0,9.058e-05,2]
[421942893,1778361041000,-300.0,9.911e-05,2]
[421942915,1778361041000,-590.31882123,9.977e-05,2]
[421942873,1778361041000,-5000.0,8.719e-05,2]
[421942875,1778361041000,-325.7068915,8.896e-05,2]
[421942874,1778361041000,-4089.9837898,8.807e-05,2]
[421942878,1778361041000,-300.0,9.058e-05,2]
[421942877,1778361041000,-1200.0,9.057e-05,2]
[421942876,1778361041000,-325.669201,8.896e-05,2]
[421942880,1778361041000,-300.0,9.058e-05,2]
[421942882,1778361041000,-412.50799934,9.242e-05,2]
[421942881,1778361041000,-300.0,9.058e-05,2]
[421942883,1778361041000,-5843.03339218,9.425e-05,2]
[421942885,1778361041000,-300.0,9.911e-05,2]
[421942884,1778361041000,-5657.16420682,9.716e-05,2]
[421942889,1778361041000,-300.0,9.911e-05,2]
[421942887,1778361041000,-300.0,9.911e-05,2]
[421942891,1778361041000,-300.0,9.911e-05,2]
[421942886,1778361041000,-300.0,9.911e-05,2]
[421942890,1778361041000,-300.0,9.911e-05,2]
[421942888,1778361041000,-300.0,9.911e-05,2]
[421942895,1778361041000,-300.0,9.911e-05,2]
[421942913,1778361041000,-500.0,9.977e-05,2]
[421942918,1778361041000,-500.0,9.977e-05,2]
[421942956,1778361041000,-4571.58227708,0.00010662,2]
[421942940,1778361041000,-861.0622806,0.0001044,2]
[421942942,1778361041000,-500.0,0.00010451,2]
[421942944,1778361041000,-557.5788265,0.00010462,2]
[421942943,1778361041000,-600.0,0.00010454,2]
[421942945,1778361041000,-4011.20289666,0.00010462,2]
[421942947,1778361041000,-578.20924308,0.00010517,2]
[421942949,1778361041000,-4291.39258687,0.00010562,2]
[421942948,1778361041000,-500.0,0.00010525,2]
[421942941,1778361041000,-1918.8176572,0.0001044,2]
[421942951,1778361041000,-160.0,0.00010578,2]
[421942952,1778361041000,-160.0,0.00010578,2]
[421942954,1778361041000,-161.5993154,0.00010578,2]
[421942953,1778361041000,-160.0,0.00010578,2]
[421942955,1778361041000,-621.78829552,0.00010627,2]
[421942958,1778361041000,-820.64018465,0.00010685,2]
[421942957,1778361041000,-644.79446246,0.00010682,2]
[421942959,1778361041000,-668.65185757,0.00010737,2]
[421942916,1778361041000,-647.89399347,9.977e-05,2]
[421942950,1778361041000,-599.60298507,0.00010572,2]
[421942939,1778361041000,-12055.0717638,0.0001044,2]
[421942946,1778361041000,-820.64018465,0.00010513,2]
[421942937,1778361041000,-162.380719,0.00010407,2]
[421942917,1778361041000,-151.5,9.977e-05,2]
[421942919,1778361041000,-500.0,9.977e-05,2]
[421942920,1778361041000,-500.0,9.977e-05,2]
[421942921,1778361041000,-500.0,9.977e-05,2]
[421942938,1778361041000,-537.6845,0.00010407,2]
[421942927,1778361041000,-600.68132839,9.977e-05,2]
[421942924,1778361041000,-500.0,9.977e-05,2]
[421942925,1778361041000,-500.0,9.977e-05,2]
[421942923,1778361041000,-500.0,9.977e-05,2]
[421942928,1778361041000,-1647.57010326,0.0001,2]
[421942922,1778361041000,-500.0,9.977e-05,2]
[421942929,1778361041000,-366.08748706,0.0001,2]
[421942931,1778361041000,-34705.51697153,0.00010151,2]
[421942932,1778361041000,-401854.8171608,0.00010151,2]
[421942934,1778361041000,-500.0,0.00010251,2]
[421942930,1778361041000,-463.0,0.00010149,2]
[421942933,1778361041000,-820.64018466,0.00010167,2]
[421942936,1778361041000,-445.202766,0.00010407,2]
[421942935,1778361041000,-820.64018465,0.0001034,2]
[421942926,1778361041000,-500.0,9.977e-05,2]
[421943003,1778361042000,-500.0,0.00010958,2]
[421943002,1778361042000,-500.0,0.00010958,2]
[421943006,1778361042000,-500.0,0.00010958,2]
[421943000,1778361042000,-579.9422032,0.00010958,2]
[421942999,1778361042000,-500.0,0.00010958,2]
[421942995,1778361042000,-500.0,0.00010958,2]
[421942996,1778361042000,-500.0,0.00010958,2]
[421942997,1778361042000,-500.0,0.00010958,2]
[421942993,1778361042000,-500.0,0.00010958,2]
[421942994,1778361042000,-500.0,0.00010958,2]
[421943007,1778361042000,-500.0,0.00010958,2]
[421942989,1778361042000,-500.0,0.00010958,2]
[421942998,1778361042000,-500.0,0.00010958,2]
[421943004,1778361042000,-500.0,0.00010958,2]
[421943018,1778361042000,-435.56582206,0.00010958,2]
[421943008,1778361042000,-500.0,0.00010958,2]
[421943009,1778361042000,-500.0,0.00010958,2]
[421943010,1778361042000,-500.0,0.00010958,2]
[421943012,1778361042000,-500.0,0.00010958,2]
[421943011,1778361042000,-500.0,0.00010958,2]
[421943014,1778361042000,-500.0,0.00010958,2]
[421943013,1778361042000,-500.0,0.00010958,2]
[421943015,1778361042000,-501.028129,0.00010958,2]
[421943021,1778361042000,-500.0,0.00010958,2]
[421943016,1778361042000,-500.0,0.00010958,2]
[421943020,1778361042000,-500.0,0.00010958,2]
[421943017,1778361042000,-500.0,0.00010958,2]
[421942992,1778361042000,-500.0,0.00010958,2]
[421943005,1778361042000,-500.0,0.00010958,2]
[421942991,1778361042000,-500.0,0.00010958,2]
[421942968,1778361042000,-155.0,0.00010952,2]
[421942988,1778361042000,-500.0,0.00010958,2]
[421942960,1778361042000,-693.3919763,0.00010792,2]
[421942962,1778361042000,-820.64018465,0.00010858,2]